{"text_format":"3","workbook":"xlsx","n_sheets":2,"sheets":["Praćenje projekata","Postavljanje"],"not_rendered":{"defined_names":6},"read":"whole","date_system":"1900"}

{"sheet":"Praćenje projekata","index":0,"n_rows":13,"n_cols":15,"rows_kept":13}
[null,"Praćenje projekata"]
[null,null,"Označavanje zastavicom kada je vrijednost veća/manja za ovaj postotak: ",{"v":0.25,"d":"25%"}]
[]
[null,"Projekt","Kategorija","Dodijeljeno osobi","Procijenjeni\nPočetak","Procijenjeni \nZavršetak","Procjena rada (u satima)","Procjena trajanja (u danima)","Stvarni \nPočetak","Stvarni\nZavršetak","Ikona zastavice za više/manje stvarnog rada (u satima)","Stvarni rad (u satima)","Ikona zastavice za više/manje stvarnog trajanja (u satima)","Stvarno trajanje (u danima)","Napomene"]
[null,"Projekt 1","Kategorija 1","Zaposlenik 1",{"$f":"TODAY()-65","v":"2016-08-17"},{"$f":"TODAY()-5","v":"2016-10-16"},210,{"$f":"IF(COUNTA('Praćenje projekata'!$E5,'Praćenje projekata'!$F5)<>2,\"\",DAYS360('Praćenje projekata'!$E5,'Praćenje projekata'!$F5,FALSE))","v":59},{"$f":"TODAY()-65","v":"2016-08-17"},{"$f":"TODAY()","v":"2016-10-21"},{"$f":"IFERROR(IF(Praćenje_projekata[Stvarni rad (u satima)]=0,\"\",IF(ABS((Praćenje_projekata[[#This Row],[Stvarni rad (u satima)]]-Praćenje_projekata[[#This Row],[Procjena rada (u satima)]])/Praćenje_projekata[[#This Row],[Procjena rada (u satima)]])>PostotakZaOznaku,1,0)),\"\")","v":1},300,{"$f":"IFERROR(IF(Praćenje_projekata[Stvarno trajanje (u danima)]=0,\"\",IF(ABS((Praćenje_projekata[[#This Row],[Stvarno trajanje (u danima)]]-Praćenje_projekata[[#This Row],[Procjena trajanja (u danima)]])/Praćenje_projekata[[#This Row],[Procjena trajanja (u danima)]])>PostotakZaOznaku,1,0)),\"\")","v":0},{"$f":"IF(COUNTA('Praćenje projekata'!$I5,'Praćenje projekata'!$J5)<>2,\"\",DAYS360('Praćenje projekata'!$I5,'Praćenje projekata'!$J5,FALSE))","v":64}]
[null,"Projekt 2","Kategorija 2","Zaposlenik 4",{"$f":"TODAY()-41","v":"2016-09-10"},{"$f":"TODAY()-10","v":"2016-10-11"},400,{"$f":"IF(COUNTA('Praćenje projekata'!$E6,'Praćenje projekata'!$F6)<>2,\"\",DAYS360('Praćenje projekata'!$E6,'Praćenje projekata'!$F6,FALSE))","v":31},{"$f":"TODAY()-41","v":"2016-09-10"},{"$f":"TODAY()-7","v":"2016-10-14"},{"$f":"IFERROR(IF(Praćenje_projekata[Stvarni rad (u satima)]=0,\"\",IF(ABS((Praćenje_projekata[[#This Row],[Stvarni rad (u satima)]]-Praćenje_projekata[[#This Row],[Procjena rada (u satima)]])/Praćenje_projekata[[#This Row],[Procjena rada (u satima)]])>PostotakZaOznaku,1,0)),\"\")","v":0},390,{"$f":"IFERROR(IF(Praćenje_projekata[Stvarno trajanje (u danima)]=0,\"\",IF(ABS((Praćenje_projekata[[#This Row],[Stvarno trajanje (u danima)]]-Praćenje_projekata[[#This Row],[Procjena trajanja (u danima)]])/Praćenje_projekata[[#This Row],[Procjena trajanja (u danima)]])>PostotakZaOznaku,1,0)),\"\")","v":0},{"$f":"IF(COUNTA('Praćenje projekata'!$I6,'Praćenje projekata'!$J6)<>2,\"\",DAYS360('Praćenje projekata'!$I6,'Praćenje projekata'!$J6,FALSE))","v":34}]
[null,"Projekt 3","Kategorija 1","Zaposlenik 2",{"$f":"TODAY()-100","v":"2016-07-13"},{"$f":"TODAY()-40","v":"2016-09-11"},500,{"$f":"IF(COUNTA('Praćenje projekata'!$E7,'Praćenje projekata'!$F7)<>2,\"\",DAYS360('Praćenje projekata'!$E7,'Praćenje projekata'!$F7,FALSE))","v":58},{"$f":"TODAY()-100","v":"2016-07-13"},{"$f":"TODAY()-27","v":"2016-09-24"},{"$f":"IFERROR(IF(Praćenje_projekata[Stvarni rad (u satima)]=0,\"\",IF(ABS((Praćenje_projekata[[#This Row],[Stvarni rad (u satima)]]-Praćenje_projekata[[#This Row],[Procjena rada (u satima)]])/Praćenje_projekata[[#This Row],[Procjena rada (u satima)]])>PostotakZaOznaku,1,0)),\"\")","v":0},500,{"$f":"IFERROR(IF(Praćenje_projekata[Stvarno trajanje (u danima)]=0,\"\",IF(ABS((Praćenje_projekata[[#This Row],[Stvarno trajanje (u danima)]]-Praćenje_projekata[[#This Row],[Procjena trajanja (u danima)]])/Praćenje_projekata[[#This Row],[Procjena trajanja (u danima)]])>PostotakZaOznaku,1,0)),\"\")","v":0},{"$f":"IF(COUNTA('Praćenje projekata'!$I7,'Praćenje projekata'!$J7)<>2,\"\",DAYS360('Praćenje projekata'!$I7,'Praćenje projekata'!$J7,FALSE))","v":71}]
[null,"Projekt 4","Kategorija 2","Zaposlenik 3",{"$f":"TODAY()-90","v":"2016-07-23"},{"$f":"TODAY()-80","v":"2016-08-02"},250,{"$f":"IF(COUNTA('Praćenje projekata'!$E8,'Praćenje projekata'!$F8)<>2,\"\",DAYS360('Praćenje projekata'!$E8,'Praćenje projekata'!$F8,FALSE))","v":9},{"$f":"TODAY()-90","v":"2016-07-23"},{"$f":"TODAY()-71","v":"2016-08-11"},{"$f":"IFERROR(IF(Praćenje_projekata[Stvarni rad (u satima)]=0,\"\",IF(ABS((Praćenje_projekata[[#This Row],[Stvarni rad (u satima)]]-Praćenje_projekata[[#This Row],[Procjena rada (u satima)]])/Praćenje_projekata[[#This Row],[Procjena rada (u satima)]])>PostotakZaOznaku,1,0)),\"\")","v":0},276,{"$f":"IFERROR(IF(Praćenje_projekata[Stvarno trajanje (u danima)]=0,\"\",IF(ABS((Praćenje_projekata[[#This Row],[Stvarno trajanje (u danima)]]-Praćenje_projekata[[#This Row],[Procjena trajanja (u danima)]])/Praćenje_projekata[[#This Row],[Procjena trajanja (u danima)]])>PostotakZaOznaku,1,0)),\"\")","v":1},{"$f":"IF(COUNTA('Praćenje projekata'!$I8,'Praćenje projekata'!$J8)<>2,\"\",DAYS360('Praćenje projekata'!$I8,'Praćenje projekata'!$J8,FALSE))","v":18}]
[null,"Projekt 5","Kategorija 3","Zaposlenik 2",{"$f":"TODAY()-90","v":"2016-07-23"},{"$f":"TODAY()-50","v":"2016-09-01"},300,{"$f":"IF(COUNTA('Praćenje projekata'!$E9,'Praćenje projekata'!$F9)<>2,\"\",DAYS360('Praćenje projekata'!$E9,'Praćenje projekata'!$F9,FALSE))","v":38},{"$f":"TODAY()-90","v":"2016-07-23"},{"$f":"TODAY()-44","v":"2016-09-07"},{"$f":"IFERROR(IF(Praćenje_projekata[Stvarni rad (u satima)]=0,\"\",IF(ABS((Praćenje_projekata[[#This Row],[Stvarni rad (u satima)]]-Praćenje_projekata[[#This Row],[Procjena rada (u satima)]])/Praćenje_projekata[[#This Row],[Procjena rada (u satima)]])>PostotakZaOznaku,1,0)),\"\")","v":0},310,{"$f":"IFERROR(IF(Praćenje_projekata[Stvarno trajanje (u danima)]=0,\"\",IF(ABS((Praćenje_projekata[[#This Row],[Stvarno trajanje (u danima)]]-Praćenje_projekata[[#This Row],[Procjena trajanja (u danima)]])/Praćenje_projekata[[#This Row],[Procjena trajanja (u danima)]])>PostotakZaOznaku,1,0)),\"\")","v":0},{"$f":"IF(COUNTA('Praćenje projekata'!$I9,'Praćenje projekata'!$J9)<>2,\"\",DAYS360('Praćenje projekata'!$I9,'Praćenje projekata'!$J9,FALSE))","v":44}]
[null,"Projekt 6","Kategorija 4","Zaposlenik 4",{"$f":"TODAY()-60","v":"2016-08-22"},{"$f":"TODAY()-50","v":"2016-09-01"},500,{"$f":"IF(COUNTA('Praćenje projekata'!$E10,'Praćenje projekata'!$F10)<>2,\"\",DAYS360('Praćenje projekata'!$E10,'Praćenje projekata'!$F10,FALSE))","v":9},{"$f":"TODAY()-60","v":"2016-08-22"},{"$f":"TODAY()-45","v":"2016-09-06"},{"$f":"IFERROR(IF(Praćenje_projekata[Stvarni rad (u satima)]=0,\"\",IF(ABS((Praćenje_projekata[[#This Row],[Stvarni rad (u satima)]]-Praćenje_projekata[[#This Row],[Procjena rada (u satima)]])/Praćenje_projekata[[#This Row],[Procjena rada (u satima)]])>PostotakZaOznaku,1,0)),\"\")","v":0},510,{"$f":"IFERROR(IF(Praćenje_projekata[Stvarno trajanje (u danima)]=0,\"\",IF(ABS((Praćenje_projekata[[#This Row],[Stvarno trajanje (u danima)]]-Praćenje_projekata[[#This Row],[Procjena trajanja (u danima)]])/Praćenje_projekata[[#This Row],[Procjena trajanja (u danima)]])>PostotakZaOznaku,1,0)),\"\")","v":1},{"$f":"IF(COUNTA('Praćenje projekata'!$I10,'Praćenje projekata'!$J10)<>2,\"\",DAYS360('Praćenje projekata'!$I10,'Praćenje projekata'!$J10,FALSE))","v":14}]
[null,"Projekt 7","Kategorija 5","Zaposlenik 1",{"$f":"TODAY()-44","v":"2016-09-07"},{"$f":"TODAY()-20","v":"2016-10-01"},750,{"$f":"IF(COUNTA('Praćenje projekata'!$E11,'Praćenje projekata'!$F11)<>2,\"\",DAYS360('Praćenje projekata'!$E11,'Praćenje projekata'!$F11,FALSE))","v":24},{"$f":"TODAY()-44","v":"2016-09-07"},{"$f":"TODAY()-15","v":"2016-10-06"},{"$f":"IFERROR(IF(Praćenje_projekata[Stvarni rad (u satima)]=0,\"\",IF(ABS((Praćenje_projekata[[#This Row],[Stvarni rad (u satima)]]-Praćenje_projekata[[#This Row],[Procjena rada (u satima)]])/Praćenje_projekata[[#This Row],[Procjena rada (u satima)]])>PostotakZaOznaku,1,0)),\"\")","v":0},790,{"$f":"IFERROR(IF(Praćenje_projekata[Stvarno trajanje (u danima)]=0,\"\",IF(ABS((Praćenje_projekata[[#This Row],[Stvarno trajanje (u danima)]]-Praćenje_projekata[[#This Row],[Procjena trajanja (u danima)]])/Praćenje_projekata[[#This Row],[Procjena trajanja (u danima)]])>PostotakZaOznaku,1,0)),\"\")","v":0},{"$f":"IF(COUNTA('Praćenje projekata'!$I11,'Praćenje projekata'!$J11)<>2,\"\",DAYS360('Praćenje projekata'!$I11,'Praćenje projekata'!$J11,FALSE))","v":29}]
[null,"Projekt 8","Kategorija 2","Zaposlenik 1",{"$f":"TODAY()-39","v":"2016-09-12"},{"$f":"TODAY()","v":"2016-10-21"},450,{"$f":"IF(COUNTA('Praćenje projekata'!$E12,'Praćenje projekata'!$F12)<>2,\"\",DAYS360('Praćenje projekata'!$E12,'Praćenje projekata'!$F12,FALSE))","v":39},{"$f":"TODAY()-45","v":"2016-09-06"},{"$f":"TODAY()-5","v":"2016-10-16"},{"$f":"IFERROR(IF(Praćenje_projekata[Stvarni rad (u satima)]=0,\"\",IF(ABS((Praćenje_projekata[[#This Row],[Stvarni rad (u satima)]]-Praćenje_projekata[[#This Row],[Procjena rada (u satima)]])/Praćenje_projekata[[#This Row],[Procjena rada (u satima)]])>PostotakZaOznaku,1,0)),\"\")","v":0},430,{"$f":"IFERROR(IF(Praćenje_projekata[Stvarno trajanje (u danima)]=0,\"\",IF(ABS((Praćenje_projekata[[#This Row],[Stvarno trajanje (u danima)]]-Praćenje_projekata[[#This Row],[Procjena trajanja (u danima)]])/Praćenje_projekata[[#This Row],[Procjena trajanja (u danima)]])>PostotakZaOznaku,1,0)),\"\")","v":0},{"$f":"IF(COUNTA('Praćenje projekata'!$I12,'Praćenje projekata'!$J12)<>2,\"\",DAYS360('Praćenje projekata'!$I12,'Praćenje projekata'!$J12,FALSE))","v":40}]
[null,"Projekt 9","Kategorija 4","Zaposlenik 1","2016-02-05","2016-06-09",250,{"$f":"IF(COUNTA('Praćenje projekata'!$E13,'Praćenje projekata'!$F13)<>2,\"\",DAYS360('Praćenje projekata'!$E13,'Praćenje projekata'!$F13,FALSE))","v":124},"2016-03-05","2016-05-05",{"$f":"IFERROR(IF(Praćenje_projekata[Stvarni rad (u satima)]=0,\"\",IF(ABS((Praćenje_projekata[[#This Row],[Stvarni rad (u satima)]]-Praćenje_projekata[[#This Row],[Procjena rada (u satima)]])/Praćenje_projekata[[#This Row],[Procjena rada (u satima)]])>PostotakZaOznaku,1,0)),\"\")","v":0},200,{"$f":"IFERROR(IF(Praćenje_projekata[Stvarno trajanje (u danima)]=0,\"\",IF(ABS((Praćenje_projekata[[#This Row],[Stvarno trajanje (u danima)]]-Praćenje_projekata[[#This Row],[Procjena trajanja (u danima)]])/Praćenje_projekata[[#This Row],[Procjena trajanja (u danima)]])>PostotakZaOznaku,1,0)),\"\")","v":1},{"$f":"IF(COUNTA('Praćenje projekata'!$I13,'Praćenje projekata'!$J13)<>2,\"\",DAYS360('Praćenje projekata'!$I13,'Praćenje projekata'!$J13,FALSE))","v":60}]

{"sheet":"Postavljanje","index":1,"n_rows":10,"n_cols":3,"rows_kept":10}
[null,"Postavljanje"]
[]
[]
[null,"Naziv kategorije","Ime i prezime zaposlenika"]
[null,"Kategorija 1","Zaposlenik 1"]
[null,"Kategorija 2","Zaposlenik 2"]
[null,"Kategorija 3","Zaposlenik 3"]
[null,"Kategorija 4","Zaposlenik 4"]
[null,"Kategorija 5","Zaposlenik 5"]
[null,"Kategorija 6","Zaposlenik 6"]